bitfinex/quotes_ETHUSD_20230116
["timestamp","ask_amount","ask_price","bid_price","bid_amount"]
[1673882947521,24.6475988,1545.6,1545.5,0.066]
[1673882947732,0.066,1545.6,1545.5,0.066]
[1673882948053,6.53556,1545.7,1545.5,0.066]
[1673882948320,7.02116,1545.7,1545.5,0.066]
[1673882948518,13.00539,1545.7,1545.5,0.066]
[1673882948837,6.53556,1545.7,1545.5,0.066]
[1673882949059,8.27633709,1545.7,1545.5,0.066]
[1673882949205,19.9359048,1545.7,1545.5,0.066]
[1673882949414,2.0,1545.6,1545.5,0.066]
[1673882949674,16.85716093,1545.6,1545.5,0.066]
[1673882949851,16.92316093,1545.6,1545.5,0.066]
[1673882950063,21.40787821,1545.6,1545.5,0.066]
[1673882950330,33.72472859,1545.6,1545.5,0.066]
[1673882950520,2.0,1545.5,1544.9,0.05328816]
[1673882950682,19.41432,1545.3,1544.9,0.05328816]
[1673882950884,22.75310678,1545.3,1544.9,0.05328816]
[1673882951097,25.40089281,1545.3,1544.9,0.05328816]
[1673882951614,2.0,1545.1,1544.9,0.05328816]
[1673882952149,12.94498,1545.0,1544.9,0.05328816]
[1673882952471,6.53849,1545.0,1544.9,0.05328816]
[1673882952833,13.01098,1545.0,1544.9,0.05328816]
[1673882953005,6.53849,1545.0,1544.9,0.05328816]
[1673882953624,7.41049,1545.0,1544.9,0.05328816]
[1673882953970,13.88298,1545.0,1544.9,0.05328816]
[1673882954181,15.86549469,1545.0,1544.9,0.05328816]
[1673882954353,13.88298,1545.0,1544.9,0.05328816]
[1673882954886,0.066,1545.0,1544.9,0.28328816]
[1673882955095,14.94397,1545.2,1544.9,0.28328816]
[1673882955096,15.00997,1545.2,1544.9,0.28328816]
[1673882955306,8.53797,1545.2,1544.9,0.28328816]
[1673882956040,17.39964014,1545.2,1544.9,0.28328816]
[1673882956494,2.0,1545.1,1544.9,0.05328816]
[1673882956718,6.47249,1545.0,1544.9,0.05328816]
[1673882956878,6.53849,1545.0,1544.9,0.05328816]
[1673882957090,13.01098,1545.0,1544.9,0.05328816]
[1673882957527,6.53849,1545.0,1544.9,0.05328816]
[1673882957719,0.066,1545.0,1544.9,0.05328816]
[1673882957933,0.066,1545.1,1544.9,0.05328816]
[1673882958133,6.53797,1545.2,1544.9,0.28328816]
[1673882958572,13.00994,1545.2,1544.9,0.28328816]
[1673882958799,24.89583692,1545.2,1544.9,0.05328816]
[1673882958982,19.41747,1545.0,1544.9,0.05328816]
[1673882959197,19.48347,1545.0,1544.9,0.05328816]
[1673882961093,6.53849,1545.0,1544.9,0.05328816]
[1673882961552,8.53849,1545.0,1544.9,0.05328816]
[1673882961862,8.68678,1545.0,1544.9,0.05328816]
[1673882962074,15.15927,1545.0,1544.9,0.05328816]
[1673882962271,21.63176,1545.0,1544.9,0.05328816]
[1673882963930,24.90454678,1545.0,1544.9,0.05328816]
[1673882964170,29.24674925,1545.0,1544.9,0.05328816]
[1673882964372,27.80287349,1545.0,1544.9,0.05328816]
[1673882964772,29.73230373,1545.0,1544.9,0.05328816]
[1673882965133,27.80287349,1545.0,1544.9,0.05328816]
[1673882965652,28.44921267,1545.0,1544.9,0.05328816]
[1673882965808,26.03668596,1545.0,1544.9,0.05328816]
[1673882966176,29.03668596,1545.0,1544.9,0.05328816]
[1673882966344,31.4481089,1545.0,1544.9,0.05328816]
[1673882966554,29.03668596,1545.0,1544.9,0.05328816]
[1673882966768,31.44777148,1545.0,1544.9,0.05328816]
[1673882968381,14.94617,1544.9,1544.7,4e-08]
[1673882968539,47.96045584,1544.8,1544.3,0.05102144]
[1673882968748,2.007,1544.6,1544.3,0.05102144]
[1673882968994,25.89832,1544.5,1544.3,0.05102144]
[1673882969249,27.09665918,1544.5,1544.3,0.05102144]
[1673882969382,4.70966592,1544.4,1544.3,0.05102144]
[1673882969594,21.425,1544.4,1544.3,0.05102144]
[1673882969856,21.491,1544.4,1544.3,0.05102144]
[1673882972270,24.76378678,1544.4,1544.3,0.05102144]
[1673882972796,28.41012596,1544.4,1544.3,0.05102144]
[1673882973041,36.41012596,1544.4,1544.2,0.05225111]
[1673882973222,9.39979938,1544.3,1544.2,0.05225111]
[1673882973389,18.77562678,1544.3,1544.2,0.05225111]
[1673882973604,18.28962678,1544.3,1544.2,0.05225111]
[1673882974796,21.28962678,1544.3,1544.2,0.05225111]
[1673882974960,21.77562678,1544.3,1544.2,0.05225111]
[1673882975311,13.01684,1544.3,1544.2,0.05225111]
[1673882975695,19.49226,1544.3,1544.2,0.05225111]
[1673882976124,22.76504678,1544.3,1544.2,0.05225111]
[1673882976312,25.36177278,1544.3,1544.2,0.05225111]
[1673882976523,22.76504678,1544.3,1544.2,0.05225111]
[1673882977341,23.41138596,1544.3,1544.2,0.05225111]
[1673882977508,22.76504678,1544.3,1544.2,0.05225111]
[1673882977721,19.49226,1544.3,1544.2,0.05225111]
[1673882978063,13.01684,1544.3,1544.2,0.05225111]
[1673882980275,18.23881078,1544.3,1544.2,0.05225111]
[1673882981115,18.88514996,1544.3,1544.2,0.05225111]
[1673882982168,20.89514996,1544.3,1544.2,0.05225111]
[1673882982905,18.88514996,1544.3,1544.2,0.05225111]
[1673882983908,18.23881078,1544.3,1544.2,0.05225111]
[1673882984532,21.23881078,1544.3,1544.2,0.05225111]
[1673882984976,29.23881078,1544.3,1544.2,0.05225111]
[1673882985385,21.441444,1544.3,1544.2,0.05225111]
[1673882985576,22.76504678,1544.3,1544.2,0.05225111]
[1673882986214,19.49226,1544.3,1544.2,0.05225111]
[1673882987727,22.76504678,1544.3,1544.2,0.05225111]
[1673882988789,22.76504678,1544.3,1544.2,5.111e-05]
[1673882988939,2.0,1544.2,1544.1,0.05102025]
[1673882989147,19.49226,1544.3,1544.1,0.05102025]
[1673882989436,0.066,1544.3,1544.1,0.05102025]
[1673882989653,0.06,1544.6,1544.3,0.89840043]
[1673882989654,8.475,1544.4,1544.3,0.89840043]
[1673882989816,0.066,1544.4,1544.3,0.89840043]
[1673882990026,8.54993,1544.7,1544.3,1.12840043]
[1673882990283,2.0,1544.6,1544.3,1.12840043]
[1673882990594,0.066,1544.7,1544.3,1.24124047]
[1673882990755,0.066,1544.8,1544.4,0.23]
[1673882990973,6.53901,1544.9,1544.4,0.23]
[1673882991205,2.0,1544.8,1544.4,0.23]
[1673882991400,8.47356,1544.8,1544.4,0.23]
[1673882991621,20.43446478,1544.8,1544.4,0.23]
[1673882991834,20.43446478,1544.8,1544.3,1.01124047]
[1673882992244,18.28590678,1544.8,1544.3,1.01124047]
[1673882993383,18.28590678,1544.8,1544.3,0.89840043]
[1673882993384,12.60878678,1544.7,1544.3,0.89840043]
[1673882993595,1.331,1544.5,1544.3,0.89840043]
[1673882993820,19.425,1544.4,1544.3,0.89840043]
[1673882994038,19.491,1544.4,1544.3,0.89840043]
[1673882994270,22.70047868,1544.4,1544.3,0.89840043]
[1673882994784,24.02747868,1544.4,1544.3,0.89840043]
[1673882995381,27.30026546,1544.4,1544.3,0.89840043]
[1673882996176,32.28560464,1544.4,1544.1,0.05102025]
[1673882996367,28.97326546,1544.4,1544.1,0.05102025]
[1673882996544,6.541,1544.4,1544.1,0.05102025]
[1673882996971,13.016,1544.4,1544.1,0.05102025]
[1673882997818,6.541,1544.4,1544.1,0.05102025]
[1673882998226,0.066,1544.4,1544.1,0.05102025]
[1673882998440,6.54095,1544.5,1544.1,0.05102025]
[1673882998687,6.54095,1544.5,1544.1,0.72676228]
[1673882998860,6.54095,1544.5,1544.2,0.23]
[1673882999287,13.0159,1544.5,1544.2,0.23]
[1673883000130,6.47542,1544.3,1544.1,0.28102025]
[1673883000342,0.066,1544.3,1544.1,0.05102025]
[1673883000572,6.47548,1544.3,1544.1,0.05102025]
[1673883000803,6.54148,1544.3,1544.1,0.05102025]
[1673883001266,0.066,1544.3,1544.1,0.05102025]
[1673883001483,24.55935425,1544.6,1544.1,17.60625703]
[1673883001484,0.066,1544.6,1544.1,17.60625703]
[1673883001756,12.94842,1544.6,1544.2,1.7606257]
[1673883001900,13.01442,1544.6,1544.1,7.92321025]
[1673883002372,0.066,1544.6,1544.1,0.11702025]
[1673883002582,10.87946206,1544.7,1544.2,13.1814]
[1673883002848,4.40547206,1544.7,1544.3,3.27278678]
[1673883003063,0.066,1544.8,1544.4,10.30500546]
[1673883003371,1.92865425,1544.9,1544.4,10.30500546]
[1673883003372,8.40160425,1544.9,1544.4,1.10927868]
[1673883003632,20.62415884,1544.9,1544.4,0.716]
[1673883003844,8.40221425,1544.8,1544.4,0.23]
[1673883004064,3.92865425,1544.7,1544.4,0.23]
[1673883004390,5.20144103,1544.6,1544.1,0.60312025]
[1673883004547,1.92865425,1544.5,1544.1,0.05102025]
[1673883004738,0.19286542,1544.4,1544.1,0.05102025]
[1673883004948,12.95084,1544.3,1544.1,0.05102025]
[1673883005315,13.01684,1544.3,1544.1,0.05102025]
[1673883006252,18.69231206,1544.3,1544.1,0.05102025]
[1673883006583,24.89393884,1544.2,1544.1,0.05102025]
[1673883006803,29.31856393,1544.2,1544.1,0.05102025]
[1673883007470,27.38990968,1544.2,1543.5,0.03773345]
[1673883007770,8.41029006,1544.1,1543.6,1.60770181]
[1673883007931,6.5423,1544.1,1543.6,2.0]
[1673883008603,6.5423,1544.1,1543.7,1.60754254]
[1673883009134,0.066,1544.1,1543.7,4.88032932]
[1673883009298,6.54184,1544.2,1543.7,5.02306973]
[1673883009506,6.54184,1544.2,1543.7,5.08906973]
[1673883009747,0.066,1544.2,1543.7,11.56669973]
[1673883010037,14.95171,1544.2,1543.8,0.23]
[1673883010356,15.01771,1544.2,1543.8,0.23]
[1673883010552,15.01771,1544.2,1543.7,0.23]
[1673883010764,15.01771,1544.2,1543.5,3.8766148]
[1673883010765,19.43085211,1544.2,1543.5,3.8766148]
[1673883011006,19.43085211,1544.2,1543.6,1.60759688]
[1673883011391,19.43085211,1544.2,1543.6,2.58120561]
[1673883011659,0.066,1544.2,1543.6,17.56315643]
[1673883011829,1.99999006,1544.3,1543.7,6.34019239]
[1673883012036,3.0,1544.3,1543.8,19.40400366]
[1673883012248,3.0,1544.3,1543.9,3.27278678]
[1673883012496,3.0,1544.3,1544.0,0.23]
[1673883013603,9.47543,1544.3,1544.0,0.23]
[1673883013913,0.066,1544.3,1544.0,17.79213678]
[1673883014166,1.93399006,1544.5,1544.1,1.77921368]
[1673883014354,1.93399006,1544.5,1544.2,0.23]
[1673883014793,8.40857006,1544.5,1544.2,0.23]
[1673883015025,6.54058,1544.5,1544.2,0.23]
[1673883015364,0.066,1544.5,1544.2,14.03666437]
[1673883015504,0.004,1544.5,1544.2,15.43166437]
[1673883015717,1.93399006,1544.6,1544.2,21.91150437]
[1673883016681,1.83022013,1544.6,1544.2,21.91150437]
[1673883016891,1.83022013,1544.6,1544.2,1.15114437]
[1673883016892,21.83341781,1544.6,1544.2,1.15114437]
[1673883017122,21.83341781,1544.6,1544.1,0.066]
[1673883017123,25.8898766,1544.6,1544.1,0.066]
[1673883017330,29.64856338,1544.6,1543.9,9.88181]
[1673883017504,29.64856338,1544.6,1544.0,0.988181]
[1673883017923,26.3757766,1544.6,1544.0,9.464791]
[1673883018189,26.3757766,1544.6,1544.0,9.530791]
[1673883018512,8.95097781,1544.6,1544.1,3.27278678]
[1673883018676,0.066,1544.6,1544.2,12.95133]
[1673883018889,31.60036781,1544.7,1544.3,0.23]
[1673883019084,3.27278678,1544.6,1544.3,0.23]
[1673883019294,19.75101868,1544.5,1544.3,0.23]
[1673883019641,19.48974,1544.5,1544.3,0.23]
[1673883020552,19.48974,1544.5,1543.9,0.066]
[1673883020553,19.42687,1544.3,1543.9,0.066]
[1673883020775,19.42687,1544.3,1543.8,2.41070218]
[1673883020776,19.49287,1544.3,1543.8,2.0]
[1673883020998,19.49287,1544.3,1543.8,8.47747]
[1673883021211,0.066,1544.3,1543.9,3.27278678]
[1673883021436,6.47507,1544.4,1544.0,0.32727868]
[1673883021649,6.54107,1544.4,1544.0,0.32727868]
[1673883021820,6.54107,1544.4,1544.1,0.23]
[1673883022526,13.01614,1544.4,1544.1,0.23]
[1673883022903,19.49121,1544.4,1544.1,0.23]
[1673883023109,1.949121,1544.3,1544.0,0.23]
[1673883023350,6.47584,1544.2,1544.0,0.23]
[1673883023565,0.066,1544.2,1544.0,12.95284]
[1673883023757,0.486,1544.3,1544.0,13.01884]
[1673883023983,0.486,1544.5,1544.0,13.01884]
[1673883024321,0.486,1544.5,1544.1,1.301884]
[1673883024467,0.066,1544.6,1544.2,6.47583]
[1673883024684,1.93509448,1544.6,1544.2,8.54183]
[1673883025001,2.00109448,1544.7,1544.3,3.50278678]
[1673883025208,1.93509448,1544.7,1544.3,3.50278678]
[1673883025457,1.93509448,1544.7,1544.4,0.35027868]
[1673883025685,2.42099448,1544.7,1544.5,0.23]
[1673883026004,1.93509448,1544.7,1544.5,0.23]
[1673883026317,1.93509448,1544.7,1544.4,0.23]
[1673883026483,1.93509448,1544.7,1544.3,0.23]
[1673883027157,1.93509448,1544.7,1544.4,3.27278678]
[1673883027466,2.96271781,1544.8,1544.5,7.03185868]
[1673883027467,0.066,1544.8,1544.5,7.03185868]
[1673883027626,1.93509448,1544.9,1544.5,7.09785868]
[1673883029476,2.47681781,1545.0,1544.5,16.84522546]
[1673883029477,2.00109448,1545.0,1544.5,16.84522546]
[1673883029726,1.93509448,1545.0,1544.6,3.338]
[1673883029871,1.93509448,1545.0,1544.7,0.5638]
[1673883030448,24.62131781,1545.1,1544.7,7.03741]
[1673883030449,24.14559448,1545.1,1544.7,7.03741]
[1673883030659,0.066,1545.1,1544.7,16.91615]
[1673883030875,1.93509448,1545.2,1544.8,6.29940178]
[1673883031090,2.16226755,1545.3,1545.1,1.339]
[1673883031392,2.16226755,1545.3,1545.2,0.23]
[1673883031393,0.16117307,1545.3,1545.2,0.23]
[1673883031605,0.16117307,1545.3,1545.2,1.102]
[1673883031820,0.16117307,1545.3,1545.2,3.986114]
[1673883031967,0.16117307,1545.3,1545.2,15.73055078]
[1673883032179,0.16117307,1545.3,1545.2,22.26820078]
[1673883033465,0.16407686,1545.4,1545.3,3.03317307]
[1673883033650,0.16407686,1545.4,1545.3,22.14141985]
[1673883034021,5.372e-05,1545.5,1545.4,2.0]
[1673883034240,5.372e-05,1545.5,1545.4,22.77940678]
[1673883034425,0.15979193,1545.6,1545.5,2.0]
[1673883034600,0.15979193,1545.6,1545.5,22.54356678]
[1673883034966,0.15979193,1545.6,1545.5,26.80487446]
[1673883035505,9.193e-05,1545.6,1545.5,26.80487446]
[1673883036511,9.193e-05,1545.6,1545.5,26.31917446]
[1673883036722,9.193e-05,1545.6,1545.5,8.10560768]
[1673883037120,9.193e-05,1545.6,1545.5,17.56678]
[1673883037306,0.16407686,1545.8,1545.6,2.0]
[1673883037503,0.16407686,1545.8,1545.7,16.21190678]
[1673883037723,0.16407686,1545.8,1545.7,24.38719898]
[1673883038025,0.16407686,1545.8,1545.7,28.42546678]
[1673883038180,0.16407686,1545.8,1545.7,32.76533046]
[1673883038395,0.17147217,1545.9,1545.8,2.0]
[1673883038647,0.17147217,1545.9,1545.8,27.6570927]
[1673883038648,7.217e-05,1545.9,1545.8,27.6570927]
[1673883038809,7.217e-05,1545.9,1545.8,28.20831481]
[1673883039018,0.18183469,1546.0,1545.9,2.0]
[1673883039284,0.18183469,1546.0,1545.9,15.93744]
[1673883039439,0.18183469,1546.0,1545.9,19.76172678]
[1673883039650,0.18183469,1546.0,1545.9,19.27622678]
[1673883039892,0.18183469,1546.0,1545.9,20.60322678]
[1673883040120,0.18183469,1546.0,1545.9,24.71036044]
[1673883040332,0.18183469,1546.0,1545.9,26.04936044]
[1673883040659,3.469e-05,1546.0,1545.9,23.53486044]
[1673883040972,0.16407686,1546.4,1545.9,39.65251861]
[1673883041122,0.16407686,1546.4,1546.3,3.27278678]
[1673883041330,0.16407686,1546.4,1546.3,27.32821546]
[1673883041565,0.16407686,1546.4,1546.3,27.39421546]
[1673883042009,0.16407686,1546.4,1546.3,24.39421546]
[1673883042337,0.16407686,1546.4,1546.3,3.66606546]
[1673883042496,0.16407686,1546.4,1546.3,3.60006546]
[1673883042913,0.16407686,1546.4,1546.3,0.32727868]
[1673883043120,0.16407686,1546.4,1546.2,6.5334]
[1673883043372,0.16407686,1546.4,1546.2,3.33878678]
[1673883043584,0.16407686,1546.4,1546.2,3.27278678]
[1673883043812,0.16407686,1546.4,1546.1,0.066]
[1673883043976,0.16407686,1546.4,1545.9,6.46862]
[1673883043977,0.16407686,1546.4,1545.9,6.53431]
[1673883044195,0.16407686,1546.4,1545.9,0.066]
[1673883044196,9.40998473,1546.4,1545.9,0.066]
[1673883044402,0.4854,1546.3,1545.7,13.00448]
[1673883044612,6.46705,1546.3,1545.7,9.80802678]
[1673883044968,7.86905,1546.3,1545.7,3.33878678]
[1673883045114,7.86905,1546.3,1545.6,30.376]
[1673883045115,14.3361,1546.3,1545.6,30.376]
[1673883045330,3.25501,1546.2,1545.6,0.066]
[1673883045541,9.72264,1546.2,1545.5,8.47039]
[1673883045785,9.78864,1546.2,1545.5,6.53639]
[1673883046115,3.32101,1546.2,1545.5,13.00678]
[1673883046321,1.8214,1546.2,1545.5,13.00678]
[1673883046534,1.8214,1546.2,1545.5,15.00678]
[1673883046711,0.4854,1546.2,1545.5,15.00678]
[1673883046919,0.4854,1546.2,1545.6,9.74240678]
[1673883047160,22.8821,1546.3,1545.9,3.27278678]
[1673883047161,0.066,1546.3,1545.9,3.27278678]
[1673883047366,0.16407686,1546.4,1546.0,17.87558546]
[1673883047571,0.16407686,1546.4,1546.1,3.27278678]
[1673883047794,0.16407686,1546.4,1546.0,1.03961786]
[1673883048110,0.16407686,1546.4,1546.0,3.60006546]
[1673883048332,0.16407686,1546.4,1546.1,9.74045678]
[1673883048477,0.16407686,1546.4,1546.2,4.24683246]
[1673883048931,0.16407686,1546.4,1546.1,0.066]
[1673883049153,0.16407686,1546.4,1546.0,13.32965868]
[1673883049377,0.16407686,1546.4,1546.1,16.20842678]
[1673883049378,0.16607686,1546.4,1546.1,16.20842678]
[1673883049538,0.16407686,1546.4,1546.2,8.4674]
[1673883049755,0.16407686,1546.4,1546.2,18.27364678]
[1673883050006,0.16407686,1546.4,1546.3,1.82736468]
[1673883050317,0.16407686,1546.4,1546.3,11.56720146]
[1673883050528,0.16407686,1546.4,1546.3,5.16615146]
[1673883051123,0.16407686,1546.4,1546.3,1.89336468]
[1673883051417,1.03607686,1546.4,1546.1,6.53371]
[1673883051684,1.03607686,1546.4,1546.1,0.066]
[1673883051908,1.03607686,1546.4,1546.0,6.53419]
[1673883052493,0.16407686,1546.4,1546.0,17.60127678]
[1673883052675,0.16407686,1546.4,1546.0,20.00824246]
[1673883052852,0.16407686,1546.4,1546.0,15.40945568]
[1673883053063,6.63074686,1546.4,1546.0,0.066]
[1673883053286,6.63074686,1546.4,1546.1,3.27278678]
[1673883053287,0.23007686,1546.4,1546.1,3.27278678]
[1673883053528,0.23007686,1546.4,1546.1,6.60178678]
[1673883053529,0.16407686,1546.4,1546.1,6.60178678]
[1673883053718,0.16407686,1546.4,1546.1,5.33878678]
[1673883053934,0.16407686,1546.4,1546.1,6.53382]
[1673883054123,0.16407686,1546.4,1546.1,2.013026]
[1673883054324,0.16407686,1546.4,1546.1,2.0]
[1673883054534,0.16407686,1546.4,1546.0,13.00224]
[1673883054747,0.16407686,1546.4,1546.0,16.27502678]
[1673883055011,0.16407686,1546.4,1546.0,0.066]
[1673883055192,13.09738686,1546.4,1545.9,0.066]
[1673883055408,14.47312555,1546.4,1545.8,15.00389]
[1673883055637,14.47312555,1546.4,1545.8,13.00389]
[1673883055827,14.47312555,1546.4,1545.8,6.53489]
[1673883056004,8.00644555,1546.4,1545.8,13.00403]
[1673883056214,14.47307555,1546.4,1545.8,6.53489]
[1673883056443,0.4854,1546.3,1545.9,3.27278678]
[1673883056682,0.4854,1546.3,1546.0,9.74105678]
[1673883056904,0.16407686,1546.4,1546.0,16.27535678]
[1673883057481,0.16407686,1546.4,1546.2,19.40238]
[1673883057687,0.16407686,1546.4,1546.2,6.53346]
[1673883057903,0.16407686,1546.4,1546.2,1.34662468]
[1673883058162,0.066,1546.6,1546.4,0.16399999]
[1673883058325,0.17742252,1546.7,1546.4,0.16399999]
[1673883059089,6.64283252,1546.7,1546.4,0.16399999]
[1673883059259,0.24342252,1546.7,1546.4,0.16399999]
[1673883059477,0.17742252,1546.7,1546.4,7.30031099]
[1673883059802,0.17742252,1546.7,1546.4,0.89968099]
[1673883060162,19.39737,1546.6,1546.4,0.83368099]
[1673883060347,19.46337,1546.6,1546.4,0.16399999]
[1673883060748,12.99758,1546.6,1546.4,0.16399999]
[1673883060962,0.066,1546.6,1546.4,0.16399999]
[1673883061197,6.70895252,1546.7,1546.4,0.16399999]
[1673883061577,0.24342252,1546.7,1546.4,16.36995677]
[1673883061783,0.17742252,1546.7,1546.5,8.10306568]
[1673883062060,0.17742252,1546.7,1546.5,8.16906568]
[1673883062243,0.17742252,1546.7,1546.5,1.70299568]
[1673883062460,0.17742252,1546.7,1546.4,0.22999999]
[1673883062688,13.10817252,1546.7,1546.4,0.16399999]
[1673883062999,6.70879252,1546.7,1546.4,0.16399999]
[1673883063148,0.24342252,1546.7,1546.4,0.16399999]
[1673883063363,13.10830252,1546.7,1546.4,0.16399999]
[1673883063642,15.19659146,1546.7,1546.4,0.16399999]
[1673883064252,8.73115146,1546.7,1546.4,0.16399999]
[1673883064412,15.19652146,1546.7,1546.4,0.16399999]
[1673883064910,15.19645146,1546.7,1546.4,0.16399999]
[1673883065254,18.46923824,1546.7,1546.4,0.16399999]
[1673883065600,8.79830382,1546.6,1546.4,0.16399999]
[1673883065772,8.86430382,1546.6,1546.4,0.16399999]
[1673883066193,15.33038382,1546.6,1546.4,0.16399999]
[1673883066405,13.48346,1546.6,1546.4,0.16399999]
[1673883066671,0.5513,1546.6,1546.4,0.16399999]
[1673883066864,0.002,1546.6,1546.5,0.23]
[1673883067076,0.17742252,1546.7,1546.5,6.69621]
[1673883067286,0.17742252,1546.7,1546.5,17.214346]
[1673883067456,0.17742252,1546.7,1546.6,9.46579]
[1673883067673,0.17742252,1546.7,1546.6,9.76179]
[1673883068205,0.17742252,1546.7,1546.6,11.76179]
[1673883068639,0.17742252,1546.7,1546.6,21.50036678]
[1673883068824,0.17742252,1546.7,1546.6,24.69561706]
[1673883069035,0.17742252,1546.7,1546.6,28.46628848]
[1673883069298,0.17742252,1546.7,1546.6,26.69461706]
[1673883070041,0.17742252,1546.7,1546.6,26.69261706]
[1673883070208,0.17742252,1546.7,1546.6,26.69461706]
[1673883070635,0.17742252,1546.7,1546.6,27.4355193]
[1673883070862,0.17742252,1546.7,1546.6,33.9013093]
[1673883071236,0.16407686,1546.8,1546.7,2.0]
[1673883071413,0.16407686,1546.8,1546.7,21.94936749]
[1673883071718,0.16407686,1546.8,1546.7,25.35796749]
[1673883072559,0.16407686,1546.8,1546.7,25.01336749]
[1673883072879,0.16407686,1546.8,1546.7,25.01536749]
[1673883073191,1.566e-05,1546.9,1546.7,25.39646749]
[1673883073351,0.2528972,1547.5,1547.3,1.565e-05]
[1673883073562,0.1868972,1547.5,1547.3,9.73536243]
[1673883073818,0.1868972,1547.5,1547.4,0.23]
[1673883074132,0.1868972,1547.5,1547.4,0.223]
[1673883074500,0.1868972,1547.5,1547.4,3.49578678]
[1673883075760,0.1868972,1547.5,1547.4,0.223]
[1673883075988,0.1888972,1547.5,1547.4,4.17094334]
[1673883076200,0.1868972,1547.5,1547.4,12.63339334]
[1673883076453,0.1868972,1547.5,1547.4,19.16184334]
[1673883078023,0.1868972,1547.5,1547.4,13.88905656]
[1673883078179,0.1868972,1547.5,1547.4,0.066]
[1673883078384,0.1868972,1547.5,1547.3,1.565e-05]
[1673883078599,0.1868972,1547.5,1547.4,16.19768678]
[1673883078866,1.28056974,1547.6,1547.5,2.0]
[1673883079081,1.28056974,1547.6,1547.5,18.19684678]
[1673883079227,1.28056974,1547.6,1547.5,22.20127646]
[1673883079443,1.28056974,1547.6,1547.5,25.20127646]
[1673883079876,1.28056974,1547.6,1547.5,23.86827646]
[1673883080108,1.28056974,1547.6,1547.5,15.40624646]
[1673883080339,1.28056974,1547.6,1547.5,5.67142968]
[1673883080507,1.28056974,1547.6,1547.5,8.94421646]
[1673883080717,1.28056974,1547.6,1547.5,12.40624646]
[1673883081486,1.28056974,1547.6,1547.5,18.86827646]
[1673883081918,1.28056974,1547.6,1547.5,20.19427646]
[1673883082947,1.28056974,1547.6,1547.5,18.86827646]
[1673883083226,1.28056974,1547.6,1547.5,12.40624646]
[1673883083465,1.28056974,1547.6,1547.5,21.86827646]
[1673883083682,1.28056974,1547.6,1547.5,15.40624646]
[1673883083911,1.28056974,1547.6,1547.5,12.80081678]
[1673883084100,1.28056974,1547.6,1547.5,19.26284678]
[1673883085167,1.28056974,1547.6,1547.5,9.52803]
[1673883085778,1.28256974,1547.6,1547.5,19.26084678]
[1673883085978,1.28056974,1547.6,1547.5,19.26284678]
[1673883086189,1.28056974,1547.6,1547.5,23.16234246]
[1673883086644,1.28056974,1547.6,1547.5,23.80868164]
[1673883087253,1.28056974,1547.6,1547.5,30.27071164]
[1673883087885,0.00041898,1547.8,1547.6,1.28]
[1673883088117,0.18313944,1548.4,1547.7,0.128]
[1673883088325,0.18313944,1548.4,1548.0,1.333]
[1673883088497,0.18313944,1548.4,1548.1,12.91888]
[1673883088864,0.18313944,1548.4,1548.1,15.63121918]
[1673883089016,0.18313944,1548.4,1548.1,8.52544]
[1673883089232,0.13313944,1548.4,1548.1,0.066]
[1673883089439,0.4848,1548.3,1547.9,0.066]
[1673883089693,6.94365,1548.3,1547.8,0.002]
[1673883089968,10.0,1548.2,1547.4,0.066]
[1673883090227,19.38033,1548.0,1547.3,1.565e-05]
[1673883090392,1.332,1547.7,1547.3,1.565e-05]
[1673883090595,7.92189,1547.6,1547.3,1.565e-05]
[1673883090972,0.066,1547.6,1547.3,1.565e-05]
[1673883091118,6.94665,1547.6,1547.3,1.565e-05]
[1673883091333,0.066,1547.6,1547.3,1.565e-05]
[1673883091558,0.485,1547.5,1547.3,3.27280243]
[1673883091767,0.066,1547.8,1547.4,3.27278678]
[1673883091984,22.2882,1547.9,1547.5,10.06201546]
[1673883092188,22.2882,1547.9,1547.6,3.27278678]
[1673883092511,0.066,1547.9,1547.5,0.39327868]
[1673883092696,6.4605,1547.9,1547.3,0.06601565]
[1673883092908,8.94591,1547.8,1547.3,3.00001565]
[1673883093158,9.01191,1547.8,1547.3,1.565e-05]
[1673883093568,3.8839,1547.8,1547.3,3.27280243]
[1673883093759,1.8179,1547.8,1547.3,16.19820243]
[1673883093990,7.79388,1547.8,1547.3,0.06601565]
[1673883094205,14.32076,1547.8,1547.3,1.565e-05]
[1673883094518,7.85988,1547.8,1547.3,1.565e-05]
[1673883094708,14.74072,1547.7,1547.3,1.565e-05]
[1673883094901,2.0,1547.6,1547.3,1.565e-05]
[1673883095111,2.3399,1547.6,1547.3,1.565e-05]
[1673883095338,0.8249,1547.6,1547.3,1.565e-05]
[1673883095574,0.485,1547.6,1547.3,1.565e-05]
[1673883095740,2.0,1547.7,1547.3,3.27280243]
[1673883095741,0.485,1547.7,1547.3,3.27280243]
[1673883095951,0.5509,1547.8,1547.4,12.73519678]
[1673883096160,0.066,1548.0,1547.5,3.27278678]
[1673883096411,30.7249,1548.1,1547.6,6.60006546]
[1673883096636,30.7249,1548.1,1547.6,6.66606546]
[1673883097124,21.716,1548.1,1547.7,3.27278678]
[1673883097320,21.716,1548.1,1547.8,3.27278678]
[1673883097528,0.066,1548.1,1547.9,3.27278678]
[1673883097743,0.13313944,1548.4,1548.0,3.60006546]
[1673883097991,0.13313944,1548.4,1548.1,3.27278678]
[1673883098161,0.13313944,1548.4,1548.2,3.27278678]
[1673883098896,0.13313944,1548.4,1548.1,0.066]
[1673883099104,0.13313944,1548.4,1547.9,7.85936]
[1673883099314,0.13313944,1548.4,1547.9,1.797991]
[1673883099579,7.92440944,1548.4,1547.8,3.066]
[1673883099734,7.99040944,1548.4,1547.8,6.27278678]
[1673883099943,7.99040944,1548.4,1547.8,6.33878678]
[1673883100199,6.94352,1548.3,1547.8,3.33878678]
[1673883100410,7.00952,1548.3,1547.8,3.27278678]
[1673883100737,13.46824,1548.3,1547.8,3.27278678]
[1673883101271,1.332,1548.2,1547.7,0.066]
[1673883101417,6.45973,1548.1,1547.5,36.83781]
[1673883101629,12.98546,1548.1,1547.6,3.27278678]
[1673883102208,6.52573,1548.1,1547.7,3.27278678]
[1673883102522,6.52573,1548.1,1547.8,3.27278678]
[1673883102523,0.5508,1548.1,1547.8,3.27278678]
[1673883102829,0.066,1548.2,1547.8,16.19388678]
[1673883103051,0.066,1548.3,1547.9,3.27278678]
[1673883103382,0.19913944,1548.4,1548.0,3.27278678]